Cogmind - Beta 10.1 @@@ ROGUE MODE // 2020.10.11 @ 23:44:42 Player: NoNeedToExplain Result: Destroyed by as-72778 with Assembled Blade Performance ------------- Evolutions (0) 0 Regions Visited (2) 400 Robots Destroyed (20) 100 Value Destroyed (488) 488 Prototype IDs (2) 40 Alien Tech Used (0) 0 Bonus (0) 0 TOTAL SCORE: 1028 Bonus ------- None Cogmind --------- Core Integrity 0/250 Matter 234/300 Energy 73/100 System Corruption 0% Temperature Cool (0) Movement Treading (160) Location -10/Mines Parts ------- > --- POWER (1) -------- (None) > --- PROPULSION (2) --- Light Treads Light Treads > --- UTILITY (2) ------ Large Storage Unit Large Storage Unit > --- WEAPON (2) ------- Shotgun Shotgun > --- INVENTORY (16) --- Ion Engine Compact Wheel Improved Heat Sink Large Storage Unit Large Storage Unit Large Matter Pod (83) Medium Armor Plating Medium Armor Plating Medium Laser Beam Cannon Shotgun Shotgun Peak State ------------ > --- POWER ------------ Light Nuclear Core > --- PROPULSION ------- Light Treads Compact Wheel > --- UTILITY ---------- Large Storage Unit Large Storage Unit > --- WEAPON ----------- Shotgun Shotgun > --- INVENTORY -------- Ion Engine Light Treads Light Treads Light Treads Compact Wheel Improved Heat Sink Large Storage Unit Large Storage Unit Large Matter Pod Medium Armor Plating Medium Armor Plating Medium Laser Beam Cannon Shotgun Shotgun [Rating: 13] Favorites ----------- Power Light Nuclear Core Engine Ion Engine Power Core Light Nuclear Core Propulsion Compact Wheel Treads Light Treads Wheel Compact Wheel Utility Large Storage Unit Storage Large Storage Unit Weapon Assault Rifle Energy Gun EM Pulse Gun Ballistic Gun Assault Rifle Build | -11 -10 -10 ------- Run | Scr Mat Min Slots Evolved . | . . . Power . | . . . Propulsion . | . . . Utility . | . . . Weapon . | . . . Parts Attached 19 | 6 10 3 Power 2 | 1 1 . Engine 1 | 1 . . Core 1 | . 1 . Reactor . | . . . Propulsion 6 | 2 1 3 Treads 4 | . 1 3 Leg . | . . . Wheel 2 | 2 . . Hover . | . . . Flight . | . . . Utility 4 | 1 3 . Device . | . . . Storage 4 | 1 3 . Processor . | . . . Hackware . | . . . Protection . | . . . Artifact . | . . . Weapon 7 | 2 5 . Energy Gun 4 | 2 2 . Energy Cannon . | . . . Ballistic Gun 3 | . 3 . Ballistic Cannon . | . . . Launcher . | . . . Special Weapon . | . . . Impact Weapon . | . . . Slashing Weapon . | . . . Piercing Weapon . | . . . Special Melee Weapon . | . . . Unidentified Prototypes . | . . . Parts Lost 9 | . 5 4 Power 1 | . . 1 Propulsion 4 | . 1 3 Utility . | . . . Weapon 4 | . 4 . Highest Loss Streak 4 | . 3 4 Average Slot Usage (%) 98 | . 99 97 Engine 3 | . 3 . Core 10 | . 10 11 Treads 11 | . 11 14 Wheel 16 | . 16 14 Storage 27 | . 27 28 Energy Gun 14 | . 15 . Ballistic Gun 13 | . 12 28 Naked Turns . | . . . Heaviest Build 43 | 12 43 43 Greatest Support 26 | 26 26 16 Greatest Overweight (x) 2 | . 2 2 Average Overweight (x) 1 | . 1 2 Largest Inventory Capacity 16 | 6 16 16 Average Capacity 14 | 5 15 16 Most Carried 16 | 6 16 15 Average Carried 12 | 3 13 14 Final Capacity 16 | 6 16 16 Final Carried 15 | 6 15 12 Class Distribution -------------------- 100% | Mutant Dominant Class ---------------- Mutant | -10/Materials Mutant | -10/Mines Resources | -11 -10 -10 ----------- Run | Scr Mat Min Matter Collected 587 | 188 399 . Remotely . | . . . Salvage Created 744 | . 700 44 Parts 38 | . 38 . Haulers Intercepted 2 | . 2 . Recyclers Shooed 4 | . 4 . Parts Field Recycled . | . . . Retrieved Matter . | . . . Parts Self-Destructed . | . . . Prevented . | . . . Kills | -11 -10 -10 ------- Run | Scr Mat Min Combat Hostiles Destroyed 15 | . 12 3 Guns 15 | . 12 3 Classes Destroyed 6 | . 5 1 Worker 1 | . 1 . Tunneler 1 | . 1 . Hauler 2 | . 2 . Recycler 1 | . 1 . Grunt 12 | . 12 . Assembled 3 | . . 3 Best Kill Streak 4 | . 4 3 Combat Bots Only 3 | . 3 3 Max Kills in Single Turn 1 | . 1 1 Gunslinging . | . . . Exploded . | . . . Melee . | . . . Uniques/NPCs Destroyed . | . . . Combat | -11 -10 -10 -------- Run | Scr Mat Min Damage Taken 1293 | . 709 584 Core 262 | . 117 145 Absorbed by Shields . | . . . Core Remaining (%) 100 | 100 . . Volleys Fired 66 | . 59 7 Largest 2 | . 2 2 Hottest 80 | . 80 46 Shots Fired 131 | . 117 14 Gun 131 | . 117 14 Cannon . | . . . Launcher . | . . . Special . | . . . Kinetic 66 | . 52 14 Thermal 31 | . 31 . Explosive . | . . . Electromagnetic 34 | . 34 . Robot Hit Streak 9 | . 8 9 Robot Miss Streak 4 | . 4 3 Penetration Max . | . . . Secondary Targets 1 | . . 1 Max Gunslinging Chain 1 | . . 1 Shots Hit Robots 90 | . 78 12 Core Hits 49 | . 40 9 Critical Hits 1 | . . 1 Critical Kills . | . . . Critical Parts Destroyed 1 | . . 1 Melee Attacks . | . . . Impact . | . . . Slashing . | . . . Piercing . | . . . Sneak Attacks . | . . . Combat Hostiles . | . . . Follow-up Attacks . | . . . Damage Inflicted 1429 | . 1201 228 Guns 1299 | . 1071 228 Cannons . | . . . Explosions 130 | . 130 . Melee . | . . . Ramming . | . . . Kinetic 631 | . 403 228 Thermal 423 | . 423 . Explosive . | . . . Electromagnetic 375 | . 375 . Impact . | . . . Slashing . | . . . Piercing . | . . . Highest Corruption . | . . . Average Corruption . | . . . Corruption Purged . | . . . Overload Shots . | . . . Overflow Damage . | . . . Projectiles . | . . . Explosions . | . . . Melee . | . . . Knockbacks . | . . . Impact . | . . . Kinetic . | . . . Secondary . | . . . Self-Inflicted Damage 6 | . 6 . Shots 1 | . 1 . Rammed . | . . . Targets Rammed . | . . . Kicked . | . . . Crushed . | . . . Highest Temperature 213 | . 213 10 Average Temperature 48 | . 48 10 Received Heat Transfer 419 | . 399 20 Siege Activations . | . . . Robots Corrupted . | . . . Combat Hostiles . | . . . Parts Fried 1 | . 1 . Impact Corruptions . | . . . Robots Melted . | . . . Combat Hostiles . | . . . Parts Melted 1 | . 1 . Heat Transferred 1016 | . 1016 . Parts Sabotaged . | . . . Parts Stolen . | . . . Parts Stripped . | . . . Power Chain Reactions 2 | . 2 . Missiles Intercepted . | . . . Alert | -11 -10 -10 ------- Run | Scr Mat Min Peak Influence 219 | . 219 . Initial . | . . . Average 76 | . 87 . Maximum Alert Level 1 | . 1 . Low Security (%) 88 | 100 86 100 Level 1 11 | . 13 . Level 2 . | . . . Level 3 . | . . . Level 4 . | . . . Level 5 . | . . . High Security . | . . . Max Security . | . . . Squads Dispatched 3 | . 3 . Investigation 2 | . 2 . Extermination . | . . . Reinforcement 1 | . 1 . Assault . | . . . Garrison . | . . . Intercept . | . . . Construction Impeded . | . . . Haulers Reinforced . | . . . Stealth | -11 -10 -10 --------- Run | Scr Mat Min Distress Signals 1 | . 1 . Communications Jammed . | . . . Distress Signals . | . . . Times Spotted 41 | . 32 9 Peak Tracking Total 11 | . 4 11 Tactical Retreats 3 | . 3 . Traps | -11 -10 -10 ------- Run | Scr Mat Min Traps Triggered 2 | . 2 . Indirectly . | . . . Trap Hack Attempts . | . . . Triggered . | . . . Disarmed . | . . . Reprogrammed . | . . . Reused . | . . . Traps Extracted . | . . . Installed . | . . . Triggered . | . . . Machines | -11 -10 -10 ---------- Run | Scr Mat Min Machines Disabled 1 | . 1 . Max in Single Turn 1 | . 1 . Machines Sabotaged . | . . . Garrisons Compromised . | . . . Overloaded Fab Kills . | . . . Fab Network Shutdowns . | . . . Hacking | -11 -10 -10 --------- Run | Scr Mat Min Machines Accessed 5 | . 5 . Terminals 5 | . 5 . Fabricators . | . . . Repair Stations . | . . . Recycling Units . | . . . Scanalyzers . | . . . Garrison Access . | . . . Total Hacks 17 | . 17 . Successful 9 | . 9 . Failed 8 | . 8 . Catastrophic 1 | . 1 . Database Lockouts . | . . . Manual 13 | . 13 . Terminals 17 | . 17 . Fabricators . | . . . Repair Stations . | . . . Recycling Units . | . . . Scanalyzers . | . . . Garrison Access . | . . . Terminal Hacks 6 | . 6 . Part Schematic 2 | . 2 . Prototype ID Bank 1 | . 1 . Branch Access Points 1 | . 1 . Alert Level 1 | . 1 . Unreport Threat 1 | . 1 . Fabricator Hacks . | . . . Repair Station Hacks . | . . . Recycling Unit Hacks . | . . . Scanalyzer . | . . . Garrison Access Hacks . | . . . Unauthorized Hacks 3 | . 3 . Terminals 3 | . 3 . Track 1 | . 1 . Botnet 2 | . 2 . Fabricators . | . . . Repair Stations . | . . . Recycling Units . | . . . Scanalyzers . | . . . Garrison Access . | . . . Data Cores Recovered . | . . . Used . | . . . Hacking Detections 5 | . 5 . Full Trace Events . | . . . Feedback Events . | . . . Feedback Blocked . | . . . Robot Schematics Acquired . | . . . Robots Built . | . . . Matter . | . . . Time . | . . . Total Robot Build Rating . | . . . Part Schematics Acquired 2 | . 2 . Parts Built . | . . . Matter . | . . . Time . | . . . Total Part Build Rating . | . . . Parts Repaired . | . . . Time . | . . . Parts Recycled . | . . . Recycled Matter . | . . . Retrieved Matter . | . . . Retrieved Components . | . . . Parts Scanalyzed . | . . . Part Schematics Acquired . | . . . Parts Damaged . | . . . Bothacking | -11 -10 -10 ------------ Run | Scr Mat Min Used RIF Installer . | . . . Robots Hacked . | . . . Non-combat . | . . . Combat . | . . . Robot Hacks Applied . | . . . Relay Couplers Released . | . . . Robots Rewired . | . . . Allies Hacked . | . . . Hacks Repelled . | . . . Allies | -11 -10 -10 -------- Run | Scr Mat Min Total Allies 2 | . . 2 Largest Group 2 | . . 2 Highest-Rated Group 46 | . . 46 Highest-Rated Ally 31 | . . 31 Total Orders . | . . . Ally Attacks 2 | . . 2 Total Damage 22 | . . 22 Kills . | . . . Allies Corrupted . | . . . Allies Melted . | . . . Intel | -11 -10 -10 ------- Run | Scr Mat Min Robot Analysis Total . | . . . Derelict Logs Recovered . | . . . Drone Launches . | . . . Drone Recoveries . | . . . Exploration | -11 -10 -10 ------------- Run | Scr Mat Min Turns Passed 947 | 62 828 57 Spaces Moved 579 | 51 499 29 Core 1 | 1 . . Treads 5 | . 5 . Legs . | . . . Wheels 573 | 50 494 29 Hover . | . . . Flight . | . . . Fastest Speed 50 | 50 90 120 Average Speed 113 | 90 115 120 Slowest Speed 200 | 100 200 120 Overloaded Moves . | . . . Propulsion Burnouts . | . . . Robots Hopped . | . . . Cave-ins Triggered . | . . . Exploration Rate (%) 35 | 4 89 12 Regions Visited 2 Branch Regions 1 Pre-discovered Areas . | . . . Known Exits Taken 1 | . 1 . Unknown Exits Taken 1 | 1 . . Scrap Searched . | . . . Spaces Dug . | . . . Terrain Destroyed 3 | . 3 . Melee . | . . . Projectile . | . . . AOE 3 | . 3 . Terrain Rammed . | . . . Walls Destroyed . | . . . Machines Disabled . | . . . Actions | -11 -10 -10 --------- Run | Scr Mat Min Total 743 | 64 640 39 Wait 29 | 1 28 . Move 577 | 50 498 29 Hop . | . . . Pick Up 34 | 7 27 . Fast Attach 8 | 5 3 . Attach 9 | 1 5 3 Detach 1 | . 1 . Swap 2 | . 2 . Drop 17 | . 17 . Fire 66 | . 59 7 Melee . | . . . Ram . | . . . Kick . | . . . Crush . | . . . Escape Stasis . | . . . Rewire . | . . . Trap . | . . . Miscellaneous . | . . . Route ------- -11/Scrapyard -10/Materials (discovered 5 exits: [*Mat x3] / *Min x2) -10/Mines History --------- Turn | Location | Event 22 | -11/Scrapyard | Discovered new exit (range 16) 63 | -11/Scrapyard | Entered Materials 240 | -10/Materials | Lost 3 parts (1n2w) 257 | -10/Materials | Discovered new exit (range 8) 264 | -10/Materials | Identified exit to Mines 312 | -10/Materials | Build established: Mutant 411 | -10/Materials | Discovered new exit (range 16) 620 | -10/Materials | Discovered new exit (range 15) 891 | -10/Materials | Entered Mines 919 | -10/Mines | Assembled infested the area 924 | -10/Mines | Assisted by a Guerilla fighting off Assembled 935 | -10/Mines | Core integrity fell below 50% 946 | -10/Mines | Core integrity fell below 20% 948 | -10/Mines | Destroyed by as-72778 with Assembled Blade Last Messages --------------- 00924_ WN-G7M(h): "I'll hold them off! Go on ahead or try to find another way!" 00925_ L2-Q4E(g) destroyed. 00926_ 2Q-03E(z) destroyed. 00926_ HV Slug penetrates Wall. 00927_ WN-G7M(h) shuts down. 00929_ as-33702 destroyed. 00929_ Switching to secondary target: as-88360. 00933_ Lgt. Treads destroyed. 00936_ as-84456 destroyed. 00937_ WN-G7M(h) heat short circuits Fission Core. 00939_ WN-G7M(h) destroyed. 00939_ as-56841 suffers critical hit. 00939_ Destroyed Asb. Hover Unit. 00939_ Lgt. Nuclear Core destroyed. 00940_ Critical hit. 00940_ Com. Wheel destroyed. 00942_ as-70157 destroyed. 00944_ Critical hit. 00944_ Lgt. Treads destroyed. Map ----- +----------------------------------------------------+ | | | | | | | | | | | | | | | | | | | | | | | | | | | | | | | | | ???????????????????????????????????? | | ???????#####???????????????????????? | | ??????## ##??????????????????????? | | ??????# #??????????????????????? | | ?????## #??????????????????????? | | ????## #???????????????????????? | | ??### #???????????????????????? | | ?## #???????????????????????? | | ?# ##??????????????????????? | | ?# = a@#??????????????????????? | | ?## =%! %%a#??????????????????????? | | ??# [ a%;######????????????????? | | ??## *a a ???????????????? | | ???# !%= ???????????????? | | ??## ! ########????????????????? | | ??# ;#???????????????????????? | | ??# ;;????????????????????????? | | ??# ######????????????????????? | | ??## ???????????????? | | ???## #########??????????????????? | | ????# ##??????????????????????????? | | ????# #???????????????????????????? | | ????# #???????????????????????????? | | ????# #???????????????????????????? | | ????# ##??????????????????????????? | | ????# ##?????????????????????????? | | ????# ##????????????????????????? | | ????# ##???????????????????????? | | ????# #???????????????????????? | | ????# #???????????????????????? | | ???# #???????????????????????? | | ???# #???????????????????????? | | ???# ### ##???????????????????????? | | ???##???###????????????????????????? | +----------------------------------------------------+ Best States ------------- Heat Dissipation 25 Energy Generation 14 Energy Capacity 250 Matter Stores 300 Matter Capacity 300 Sight Range 16 Terrain Scan Density 10 Evasion (%) 42 Recoil Reduction 1 Item Schematics ----------------- Hcp. Storage Unit | -10/Materials | Hacked Lgt. Armor Plating | -10/Materials | Hacked Robot Schematics ------------------ None Fabricated ------------ Nothing Alien Tech Used ----------------- None Achievements -------------- None Challenges ------------ None Game ------ Seed MasterDirtyStick Manual? 0 Play Time 00:13:07 Cumulative 50.8 hours Start 2020.10.11 @ 23:32:36 End 2020.10.11 @ 23:44:42 Sessions 1 Manual Loads 0 Difficulty Rogue Special Mode None Game No. 34 Rogue 34 Adventurer 0 Explorer 0 Win Type - Total 4 Types 4/0/0/0/0/0/0/0/0 Lore% 24 Gallery% 44 Achievement% 41 Wizard Run 0 Options --------- ASCII 0 Keyboard 0 Movement Numpad Keybinds 0 Fullscreen 2 Font 24/Smallcaps Map View 76x50 Tactical HUD 1 Map Filters NONE Filters NONE Steam 1 RUN: 26fc1230-49c3-4997-a3ef-cd8841705d67